Workbook

Sheet rectas
A1: y= | B1: =(A13-100)/10 -> -1.2 | C1: x+ | D1: =B13-100 -> -18
A12: m | B12: b
A13: 88 | B13: 82
A15: -50 | B15: =$B$1*A15+$D$1 -> 42
A16: -49 | B16: =$B$1*A16+$D$1 -> 40.8
A17: -48 | B17: 39.6
A18: -47 | B18: 38.4
A19: -46 | B19: 37.2
A20: -45 | B20: 36
A21: -44 | B21: 34.8
A22: -43 | B22: 33.6
A23: -42 | B23: 32.4
A24: -41 | B24: 31.2
A25: -40 | B25: 30
A26: -39 | B26: 28.8
A27: -38 | B27: 27.6
A28: -37 | B28: 26.4
A29: -36 | B29: 25.2
A30: -35 | B30: 24
A31: -34 | B31: 22.8
A32: -33 | B32: 21.6
A33: -32 | B33: 20.4
A34: -31 | B34: 19.2
A35: -30 | B35: 18
A36: -29 | B36: 16.8
A37: -28 | B37: 15.6
A38: -27 | B38: 14.4
A39: -26 | B39: 13.2
A40: -25 | B40: 12
A41: -24 | B41: 10.8
A42: -23 | B42: 9.6
A43: -22 | B43: 8.4
A44: -21 | B44: 7.2
A45: -20 | B45: 6
A46: -19 | B46: 4.8
A47: -18 | B47: 3.6
A48: -17 | B48: 2.4
A49: -16 | B49: 1.2
A50: -15 | B50: 0
A51: -14 | B51: -1.2
A52: -13 | B52: -2.4
A53: -12 | B53: -3.6
A54: -11 | B54: -4.8
A55: -10 | B55: -6
A56: -9 | B56: -7.2
A57: -8 | B57: -8.4
A58: -7 | B58: -9.6
A59: -6 | B59: -10.8
A60: -5 | B60: -12
A61: -4 | B61: -13.2
A62: -3 | B62: -14.4
A63: -2 | B63: -15.6
A64: -1 | B64: -16.8
A65: 0 | B65: -18
A66: 1 | B66: -19.2
A67: 2 | B67: -20.4
A68: 3 | B68: -21.6
A69: 4 | B69: -22.8
A70: 5 | B70: -24
A71: 6 | B71: -25.2
A72: 7 | B72: -26.4
A73: 8 | B73: -27.6
A74: 9 | B74: -28.8
A75: 10 | B75: -30
A76: 11 | B76: -31.2
A77: 12 | B77: -32.4
A78: 13 | B78: -33.6
A79: 14 | B79: -34.8
A80: 15 | B80: =$B$1*A80+$D$1 -> -36
A81: 16 | B81: -37.2
A82: 17 | B82: -38.4
A83: 18 | B83: -39.6
A84: 19 | B84: -40.8
A85: 20 | B85: -42
A86: 21 | B86: -43.2
A87: 22 | B87: -44.4
A88: 23 | B88: -45.6
A89: 24 | B89: -46.8
A90: 25 | B90: -48
A91: 26 | B91: -49.2
A92: 27 | B92: -50.4
A93: 28 | B93: -51.6
A94: 29 | B94: -52.8
A95: 30 | B95: -54
A96: 31 | B96: -55.2
A97: 32 | B97: -56.4
A98: 33 | B98: -57.6
A99: 34 | B99: -58.8
A100: 35 | B100: -60
A101: 36 | B101: -61.2
A102: 37 | B102: -62.4
A103: 38 | B103: -63.6
A104: 39 | B104: -64.8
A105: 40 | B105: -66
A106: 41 | B106: -67.2
A107: 42 | B107: -68.4
A108: 43 | B108: -69.6
A109: 44 | B109: -70.8
A110: 45 | B110: -72
A111: 46 | B111: -73.2
A112: 47 | B112: -74.4
A113: 48 | B113: -75.6
A114: 49 | B114: -76.8
A115: 50 | B115: -78

Sheet parábolas
A1: y= | B1: =(A13-500)/100 -> -0.19 | C1: x2+ | D1: =B13-100 -> 9
A12: m | B12: b
A13: 481 | B13: 109
A15: -50 | B15: =$B$1*A15^2+$D$1 -> -466
A16: -49 | B16: =$B$1*A16^2+$D$1 -> -447.19
A17: -48 | B17: =$B$1*A17^2+$D$1 -> -428.76
A18: -47 | B18: =$B$1*A18^2+$D$1 -> -410.71
A19: -46 | B19: =$B$1*A19^2+$D$1 -> -393.04
A20: -45 | B20: =$B$1*A20^2+$D$1 -> -375.75
A21: -44 | B21: =$B$1*A21^2+$D$1 -> -358.84
A22: -43 | B22: =$B$1*A22^2+$D$1 -> -342.31
A23: -42 | B23: =$B$1*A23^2+$D$1 -> -326.16
A24: -41 | B24: =$B$1*A24^2+$D$1 -> -310.39
A25: -40 | B25: =$B$1*A25^2+$D$1 -> -295
A26: -39 | B26: =$B$1*A26^2+$D$1 -> -279.99
A27: -38 | B27: =$B$1*A27^2+$D$1 -> -265.36
A28: -37 | B28: =$B$1*A28^2+$D$1 -> -251.11
A29: -36 | B29: =$B$1*A29^2+$D$1 -> -237.24
A30: -35 | B30: =$B$1*A30^2+$D$1 -> -223.75
A31: -34 | B31: =$B$1*A31^2+$D$1 -> -210.64
A32: -33 | B32: =$B$1*A32^2+$D$1 -> -197.91
A33: -32 | B33: =$B$1*A33^2+$D$1 -> -185.56
A34: -31 | B34: =$B$1*A34^2+$D$1 -> -173.59
A35: -30 | B35: =$B$1*A35^2+$D$1 -> -162
A36: -29 | B36: =$B$1*A36^2+$D$1 -> -150.79
A37: -28 | B37: =$B$1*A37^2+$D$1 -> -139.96
A38: -27 | B38: =$B$1*A38^2+$D$1 -> -129.51
A39: -26 | B39: =$B$1*A39^2+$D$1 -> -119.44
A40: -25 | B40: =$B$1*A40^2+$D$1 -> -109.75
A41: -24 | B41: =$B$1*A41^2+$D$1 -> -100.44
A42: -23 | B42: =$B$1*A42^2+$D$1 -> -91.51
A43: -22 | B43: =$B$1*A43^2+$D$1 -> -82.96
A44: -21 | B44: =$B$1*A44^2+$D$1 -> -74.79
A45: -20 | B45: =$B$1*A45^2+$D$1 -> -67
A46: -19 | B46: =$B$1*A46^2+$D$1 -> -59.59
A47: -18 | B47: =$B$1*A47^2+$D$1 -> -52.56
A48: -17 | B48: =$B$1*A48^2+$D$1 -> -45.91
A49: -16 | B49: =$B$1*A49^2+$D$1 -> -39.64
A50: -15 | B50: =$B$1*A50^2+$D$1 -> -33.75
A51: -14 | B51: =$B$1*A51^2+$D$1 -> -28.24
A52: -13 | B52: =$B$1*A52^2+$D$1 -> -23.11
A53: -12 | B53: =$B$1*A53^2+$D$1 -> -18.36
A54: -11 | B54: =$B$1*A54^2+$D$1 -> -13.99
A55: -10 | B55: =$B$1*A55^2+$D$1 -> -10
A56: -9 | B56: =$B$1*A56^2+$D$1 -> -6.39
A57: -8 | B57: =$B$1*A57^2+$D$1 -> -3.16
A58: -7 | B58: =$B$1*A58^2+$D$1 -> -0.31
A59: -6 | B59: =$B$1*A59^2+$D$1 -> 2.16
A60: -5 | B60: =$B$1*A60^2+$D$1 -> 4.25
A61: -4 | B61: =$B$1*A61^2+$D$1 -> 5.96
A62: -3 | B62: =$B$1*A62^2+$D$1 -> 7.29
A63: -2 | B63: =$B$1*A63^2+$D$1 -> 8.24
A64: -1 | B64: =$B$1*A64^2+$D$1 -> 8.81
A65: 0 | B65: =$B$1*A65^2+$D$1 -> 9
A66: 1 | B66: =$B$1*A66^2+$D$1 -> 8.81
A67: 2 | B67: =$B$1*A67^2+$D$1 -> 8.24
A68: 3 | B68: =$B$1*A68^2+$D$1 -> 7.29
A69: 4 | B69: =$B$1*A69^2+$D$1 -> 5.96
A70: 5 | B70: =$B$1*A70^2+$D$1 -> 4.25
A71: 6 | B71: =$B$1*A71^2+$D$1 -> 2.16
A72: 7 | B72: =$B$1*A72^2+$D$1 -> -0.31
A73: 8 | B73: =$B$1*A73^2+$D$1 -> -3.16
A74: 9 | B74: =$B$1*A74^2+$D$1 -> -6.39
A75: 10 | B75: =$B$1*A75^2+$D$1 -> -10
A76: 11 | B76: =$B$1*A76^2+$D$1 -> -13.99
A77: 12 | B77: =$B$1*A77^2+$D$1 -> -18.36
A78: 13 | B78: =$B$1*A78^2+$D$1 -> -23.11
A79: 14 | B79: =$B$1*A79^2+$D$1 -> -28.24
A80: 15 | B80: =$B$1*A80^2+$D$1 -> -33.75
A81: 16 | B81: =$B$1*A81^2+$D$1 -> -39.64
A82: 17 | B82: =$B$1*A82^2+$D$1 -> -45.91
A83: 18 | B83: =$B$1*A83^2+$D$1 -> -52.56
A84: 19 | B84: =$B$1*A84^2+$D$1 -> -59.59
A85: 20 | B85: =$B$1*A85^2+$D$1 -> -67
A86: 21 | B86: =$B$1*A86^2+$D$1 -> -74.79
A87: 22 | B87: =$B$1*A87^2+$D$1 -> -82.96
A88: 23 | B88: =$B$1*A88^2+$D$1 -> -91.51
A89: 24 | B89: =$B$1*A89^2+$D$1 -> -100.44
A90: 25 | B90: =$B$1*A90^2+$D$1 -> -109.75
A91: 26 | B91: =$B$1*A91^2+$D$1 -> -119.44
A92: 27 | B92: =$B$1*A92^2+$D$1 -> -129.51
A93: 28 | B93: =$B$1*A93^2+$D$1 -> -139.96
A94: 29 | B94: =$B$1*A94^2+$D$1 -> -150.79
A95: 30 | B95: =$B$1*A95^2+$D$1 -> -162
A96: 31 | B96: =$B$1*A96^2+$D$1 -> -173.59
A97: 32 | B97: =$B$1*A97^2+$D$1 -> -185.56
A98: 33 | B98: =$B$1*A98^2+$D$1 -> -197.91
A99: 34 | B99: =$B$1*A99^2+$D$1 -> -210.64
A100: 35 | B100: =$B$1*A100^2+$D$1 -> -223.75
A101: 36 | B101: =$B$1*A101^2+$D$1 -> -237.24
A102: 37 | B102: =$B$1*A102^2+$D$1 -> -251.11
A103: 38 | B103: =$B$1*A103^2+$D$1 -> -265.36
A104: 39 | B104: =$B$1*A104^2+$D$1 -> -279.99
A105: 40 | B105: =$B$1*A105^2+$D$1 -> -295
A106: 41 | B106: =$B$1*A106^2+$D$1 -> -310.39
A107: 42 | B107: =$B$1*A107^2+$D$1 -> -326.16
A108: 43 | B108: =$B$1*A108^2+$D$1 -> -342.31
A109: 44 | B109: =$B$1*A109^2+$D$1 -> -358.84
A110: 45 | B110: =$B$1*A110^2+$D$1 -> -375.75
A111: 46 | B111: =$B$1*A111^2+$D$1 -> -393.04
A112: 47 | B112: =$B$1*A112^2+$D$1 -> -410.71
A113: 48 | B113: =$B$1*A113^2+$D$1 -> -428.76
A114: 49 | B114: =$B$1*A114^2+$D$1 -> -447.19
A115: 50 | B115: =$B$1*A115^2+$D$1 -> -466

Sheet Hoja1
A1: y= | B1: =(A13-500)/100 -> -0.19 | C1: x2+ | D1: =B13-100 -> 9
A12: m | B12: b
A13: 481 | B13: 109
A15: -100 | B15: =$B$1*A15^2+$D$1 -> -1891
A16: -99 | B16: =$B$1*A16^2+$D$1 -> -1853.19
A17: -98 | B17: =$B$1*A17^2+$D$1 -> -1815.76
A18: -97 | B18: =$B$1*A18^2+$D$1 -> -1778.71
A19: -96 | B19: =$B$1*A19^2+$D$1 -> -1742.04
A20: -95 | B20: =$B$1*A20^2+$D$1 -> -1705.75
A21: -94 | B21: =$B$1*A21^2+$D$1 -> -1669.84
A22: -93 | B22: =$B$1*A22^2+$D$1 -> -1634.31
A23: -92 | B23: =$B$1*A23^2+$D$1 -> -1599.16
A24: -91 | B24: =$B$1*A24^2+$D$1 -> -1564.39
A25: -90 | B25: =$B$1*A25^2+$D$1 -> -1530
A26: -89 | B26: =$B$1*A26^2+$D$1 -> -1495.99
A27: -88 | B27: =$B$1*A27^2+$D$1 -> -1462.36
A28: -87 | B28: =$B$1*A28^2+$D$1 -> -1429.11
A29: -86 | B29: =$B$1*A29^2+$D$1 -> -1396.24
A30: -85 | B30: =$B$1*A30^2+$D$1 -> -1363.75
A31: -84 | B31: =$B$1*A31^2+$D$1 -> -1331.64
A32: -83 | B32: =$B$1*A32^2+$D$1 -> -1299.91
A33: -82 | B33: =$B$1*A33^2+$D$1 -> -1268.56
A34: -81 | B34: =$B$1*A34^2+$D$1 -> -1237.59
A35: -80 | B35: =$B$1*A35^2+$D$1 -> -1207
A36: -79 | B36: =$B$1*A36^2+$D$1 -> -1176.79
A37: -78 | B37: =$B$1*A37^2+$D$1 -> -1146.96
A38: -77 | B38: =$B$1*A38^2+$D$1 -> -1117.51
A39: -76 | B39: =$B$1*A39^2+$D$1 -> -1088.44
A40: -75 | B40: =$B$1*A40^2+$D$1 -> -1059.75
A41: -74 | B41: =$B$1*A41^2+$D$1 -> -1031.44
A42: -73 | B42: =$B$1*A42^2+$D$1 -> -1003.51
A43: -72 | B43: =$B$1*A43^2+$D$1 -> -975.96
A44: -71 | B44: =$B$1*A44^2+$D$1 -> -948.79
A45: -70 | B45: =$B$1*A45^2+$D$1 -> -922
A46: -69 | B46: =$B$1*A46^2+$D$1 -> -895.59
A47: -68 | B47: =$B$1*A47^2+$D$1 -> -869.56
A48: -67 | B48: =$B$1*A48^2+$D$1 -> -843.91
A49: -66 | B49: =$B$1*A49^2+$D$1 -> -818.64
A50: -65 | B50: =$B$1*A50^2+$D$1 -> -793.75
A51: -64 | B51: =$B$1*A51^2+$D$1 -> -769.24
A52: -63 | B52: =$B$1*A52^2+$D$1 -> -745.11
A53: -62 | B53: =$B$1*A53^2+$D$1 -> -721.36
A54: -61 | B54: =$B$1*A54^2+$D$1 -> -697.99
A55: -60 | B55: =$B$1*A55^2+$D$1 -> -675
A56: -59 | B56: =$B$1*A56^2+$D$1 -> -652.39
A57: -58 | B57: =$B$1*A57^2+$D$1 -> -630.16
A58: -57 | B58: =$B$1*A58^2+$D$1 -> -608.31
A59: -56 | B59: =$B$1*A59^2+$D$1 -> -586.84
A60: -55 | B60: =$B$1*A60^2+$D$1 -> -565.75
A61: -54 | B61: =$B$1*A61^2+$D$1 -> -545.04
A62: -53 | B62: =$B$1*A62^2+$D$1 -> -524.71
A63: -52 | B63: =$B$1*A63^2+$D$1 -> -504.76
A64: -51 | B64: =$B$1*A64^2+$D$1 -> -485.19
A65: -50 | B65: =$B$1*A65^2+$D$1 -> -466
A66: -49 | B66: =$B$1*A66^2+$D$1 -> -447.19
A67: -48 | B67: =$B$1*A67^2+$D$1 -> -428.76
A68: -47 | B68: =$B$1*A68^2+$D$1 -> -410.71
A69: -46 | B69: =$B$1*A69^2+$D$1 -> -393.04
A70: -45 | B70: =$B$1*A70^2+$D$1 -> -375.75
A71: -44 | B71: =$B$1*A71^2+$D$1 -> -358.84
A72: -43 | B72: =$B$1*A72^2+$D$1 -> -342.31
A73: -42 | B73: =$B$1*A73^2+$D$1 -> -326.16
A74: -41 | B74: =$B$1*A74^2+$D$1 -> -310.39
A75: -40 | B75: =$B$1*A75^2+$D$1 -> -295
A76: -39 | B76: =$B$1*A76^2+$D$1 -> -279.99
A77: -38 | B77: =$B$1*A77^2+$D$1 -> -265.36
A78: -37 | B78: =$B$1*A78^2+$D$1 -> -251.11
A79: -36 | B79: =$B$1*A79^2+$D$1 -> -237.24
A80: -35 | B80: =$B$1*A80^2+$D$1 -> -223.75
A81: -34 | B81: =$B$1*A81^2+$D$1 -> -210.64
A82: -33 | B82: =$B$1*A82^2+$D$1 -> -197.91
A83: -32 | B83: =$B$1*A83^2+$D$1 -> -185.56
A84: -31 | B84: =$B$1*A84^2+$D$1 -> -173.59
A85: -30 | B85: =$B$1*A85^2+$D$1 -> -162
A86: -29 | B86: =$B$1*A86^2+$D$1 -> -150.79
A87: -28 | B87: =$B$1*A87^2+$D$1 -> -139.96
A88: -27 | B88: =$B$1*A88^2+$D$1 -> -129.51
A89: -26 | B89: =$B$1*A89^2+$D$1 -> -119.44
A90: -25 | B90: =$B$1*A90^2+$D$1 -> -109.75
A91: -24 | B91: =$B$1*A91^2+$D$1 -> -100.44
A92: -23 | B92: =$B$1*A92^2+$D$1 -> -91.51
A93: -22 | B93: =$B$1*A93^2+$D$1 -> -82.96
A94: -21 | B94: =$B$1*A94^2+$D$1 -> -74.79
A95: -20 | B95: =$B$1*A95^2+$D$1 -> -67
A96: -19 | B96: =$B$1*A96^2+$D$1 -> -59.59
A97: -18 | B97: =$B$1*A97^2+$D$1 -> -52.56
A98: -17 | B98: =$B$1*A98^2+$D$1 -> -45.91
A99: -16 | B99: =$B$1*A99^2+$D$1 -> -39.64
A100: -15 | B100: =$B$1*A100^2+$D$1 -> -33.75
A101: -14 | B101: =$B$1*A101^2+$D$1 -> -28.24
A102: -13 | B102: =$B$1*A102^2+$D$1 -> -23.11
A103: -12 | B103: =$B$1*A103^2+$D$1 -> -18.36
A104: -11 | B104: =$B$1*A104^2+$D$1 -> -13.99
A105: -10 | B105: =$B$1*A105^2+$D$1 -> -10
A106: -9 | B106: =$B$1*A106^2+$D$1 -> -6.39
A107: -8 | B107: =$B$1*A107^2+$D$1 -> -3.16
A108: -7 | B108: =$B$1*A108^2+$D$1 -> -0.31
A109: -6 | B109: =$B$1*A109^2+$D$1 -> 2.16
A110: -5 | B110: =$B$1*A110^2+$D$1 -> 4.25
A111: -4 | B111: =$B$1*A111^2+$D$1 -> 5.96
A112: -3 | B112: =$B$1*A112^2+$D$1 -> 7.29
A113: -2 | B113: =$B$1*A113^2+$D$1 -> 8.24
A114: -1 | B114: =$B$1*A114^2+$D$1 -> 8.81
A115: 0 | B115: =$B$1*A115^2+$D$1 -> 9
A116: 1 | B116: =$B$1*A116^2+$D$1 -> 8.81
A117: 2 | B117: 8.24
A118: 3 | B118: 7.29
A119: 4 | B119: 5.96
A120: 5 | B120: 4.25
A121: 6 | B121: 2.16
A122: 7 | B122: -0.31
A123: 8 | B123: -3.16
A124: 9 | B124: -6.39
A125: 10 | B125: -10
A126: 11 | B126: -13.99
A127: 12 | B127: -18.36
A128: 13 | B128: -23.11
A129: 14 | B129: -28.24
A130: 15 | B130: -33.75
A131: 16 | B131: -39.64
A132: 17 | B132: -45.91
A133: 18 | B133: -52.56
A134: 19 | B134: -59.59
A135: 20 | B135: -67
A136: 21 | B136: -74.79
A137: 22 | B137: -82.96
A138: 23 | B138: -91.51
A139: 24 | B139: -100.44
A140: 25 | B140: -109.75
A141: 26 | B141: -119.44
A142: 27 | B142: -129.51
A143: 28 | B143: -139.96
A144: 29 | B144: -150.79
A145: 30 | B145: -162
A146: 31 | B146: -173.59
A147: 32 | B147: -185.56
A148: 33 | B148: -197.91
A149: 34 | B149: -210.64
A150: 35 | B150: -223.75
A151: 36 | B151: -237.24
A152: 37 | B152: -251.11
A153: 38 | B153: -265.36
A154: 39 | B154: -279.99
A155: 40 | B155: -295
A156: 41 | B156: -310.39
A157: 42 | B157: -326.16
A158: 43 | B158: -342.31
A159: 44 | B159: -358.84
A160: 45 | B160: -375.75
A161: 46 | B161: -393.04
A162: 47 | B162: -410.71
A163: 48 | B163: -428.76
A164: 49 | B164: -447.19
A165: 50 | B165: -466
A166: 51 | B166: -485.19
A167: 52 | B167: -504.76
A168: 53 | B168: -524.71
A169: 54 | B169: -545.04
A170: 55 | B170: -565.75
A171: 56 | B171: -586.84
A172: 57 | B172: -608.31
A173: 58 | B173: -630.16
A174: 59 | B174: -652.39
A175: 60 | B175: -675
A176: 61 | B176: -697.99
A177: 62 | B177: -721.36
A178: 63 | B178: -745.11
A179: 64 | B179: -769.24
A180: 65 | B180: =$B$1*A180^2+$D$1 -> -793.75
A181: 66 | B181: -818.64
A182: 67 | B182: -843.91
A183: 68 | B183: -869.56
A184: 69 | B184: -895.59
A185: 70 | B185: -922
A186: 71 | B186: -948.79
A187: 72 | B187: -975.96
A188: 73 | B188: -1003.51
A189: 74 | B189: -1031.44
A190: 75 | B190: -1059.75
A191: 76 | B191: -1088.44
A192: 77 | B192: -1117.51
A193: 78 | B193: -1146.96
A194: 79 | B194: -1176.79
A195: 80 | B195: -1207
A196: 81 | B196: -1237.59
A197: 82 | B197: -1268.56
A198: 83 | B198: -1299.91
A199: 84 | B199: -1331.64
A200: 85 | B200: -1363.75
A201: 86 | B201: -1396.24
A202: 87 | B202: -1429.11
A203: 88 | B203: -1462.36
A204: 89 | B204: -1495.99
A205: 90 | B205: -1530
A206: 91 | B206: -1564.39
A207: 92 | B207: -1599.16
A208: 93 | B208: -1634.31
A209: 94 | B209: -1669.84
A210: 95 | B210: -1705.75
A211: 96 | B211: -1742.04
... 4 more rows
